[Event "Susha Chess Blitz Women 2022"]
[Site "Shusha"]
[Date "2022.09.24"]
[Round "17"]
[White "Zawadzka, Jolanta"]
[Black "Beydullayeva, Govhar"]
[Result "1-0"]
[ECO "B52"]
[WhiteElo "2401"]
[BlackElo "2346"]
[Annotator "TA"]
[PlyCount "80"]
[EventDate "2022.09.24"]
[EventType "tourn"]
[EventCountry "AZE"]
[SourceTitle "playchess.com"]
[Source "ChessBase"]
[SourceQuality "1"]
[TimeControl "180+2"]

{[%evp 10,80,12,12,18,16,16,12,24,15,42,45,36,33,38,35,44,45,54,38,47,35,42,29,14,0,0,-15,0,0,-6,-61,-56,-56,-56,-62,-60,-59,-59,-59,-59,-64,-65,-70,-33,-56,-50,-60,-1,-1,-1,-1,-3,-4,0,0,0,0,0,0,63,48,46,0,1550,1229,5385,5009,29963,29964,12829,0,0]} 1. e4 {[%emt 0:00:03]} c5 {[%emt 0:00:00]} 2. Nf3 d6 3. Bb5+ Bd7 4. Bxd7+ {[%emt 0:00:04]} Nxd7 {[%emt 0:00:02]} 5. c3 {[%emt 0:00:01]} Ngf6 {[%emt 0:00:06]} 6. Qe2 {[%emt 0:00:01]} e6 {[%emt 0:00:10] B50: Sicilian: 2...d6, Miscellaneous.} 7. d4 {[%emt 0:00:01]} Be7 {[%emt 0:00:04]} 8. e5 $1 {[%emt 0:00:02][%mdl 4] now scores much better than the old 8.0-0.} Nd5 {[%emt 0:00:09]} 9. c4 {[%emt 0:00:03]} Nc7 {[%emt 0:01:04]} 10. exd6 {[%emt 0:00:29]} Bxd6 {[%emt 0:00:02]} 11. Nc3 {[%emt 0:00:01]} O-O {[%emt 0:00:04]} 12. dxc5 {[%emt 0:00:04]} Nxc5 {[%emt 0:00:11][%cal Oe6e5]} 13. O-O {[%emt 0:00:02]} a5 {[%emt 0:00:08]} 14. Be3 {[%emt 0:00:06]} Qe7 {[%emt 0:00:05]} 15. Rad1 {[%emt 0:00:05]} Rad8 {[%emt 0:00:11] [#]} 16. Bg5 $146 {[%emt 0:00:04]} ({Predecessor:} 16. Rfe1 h6 17. Bd4 N7a6 18. a3 Rc8 19. Nb5 Bb8 20. Bc3 Nb3 21. Nfd4 Nxd4 22. Rxd4 {1-0 (29) Grandelius,N (2651)-Brodowski,P (2463) Bydgoszcz 2022}) 16... f6 {[%emt 0:00:01]} 17. Bc1 {[%emt 0:00:02]} e5 {[%emt 0:00:11][%cal Be6e5,Be5e4][%mdl 32]} 18. Nd5 {[%emt 0:00:05]} Nxd5 {[%emt 0:00:01]} 19. Rxd5 {[%emt 0:00:01]} e4 {[%emt 0:00:12]} 20. Nd4 {[%emt 0:00:06] [#]} (20. Nh4 $11 Qc7 21. g3) 20... Bxh2+ $1 $15 {[%emt 0:00:19]} 21. Kxh2 Rxd5 {[%mdl 64] Remove Defender} 22. cxd5 {aiming for Qc4.} Qe5+ 23. Kg1 {[%emt 0:01:17] And now Qc4 would win.} Qxd4 {[%emt 0:00:02]} 24. Be3 {[%emt 0:00:13]} Qxd5 {[%emt 0:00:10] Hoping for ...Nd3.} 25. Bxc5 {[%emt 0:00:02]} Qxc5 {[%emt 0:00:01]} 26. Qxe4 {[%emt 0:00:01][%mdl 4096] Endgame KQR-KQR} Qb4 {[%emt 0:00:17]} 27. Qd5+ {[%emt 0:00:04]} Kh8 {[%emt 0:00:01]} 28. b3 {[%emt 0:00:07]} b5 {[%emt 0:00:02]} (28... h6 $15) 29. Rc1 $11 {[%emt 0:00:04]} h6 {[%emt 0:00:08]} 30. g3 {[%emt 0:00:02]} a4 {[%emt 0:00:03]} 31. Rc5 {[%emt 0:00:04]} a3 {[%emt 0:00:13]} 32. Rxb5 {[%emt 0:00:09]} Qe1+ {[%emt 0:00:01]} 33. Kg2 {[%emt 0:00:01]} Qe2 {[%emt 0:00:01]} 34. b4 {[%emt 0:00:02]} Rc8 {[%emt 0:00:04]} (34... Re8 $11) 35. Rc5 $14 {[%emt 0:00:03]} Re8 {[%emt 0:00:06]} 36. b5 {[%emt 0:00:06]} (36. Rc3 $1 $14 {might be stronger.}) 36... Re5 $2 {[%emt 0:00:02][%mdl 8192] [#]} (36... Rb8 $2 37. b6 Qa6 38. Rb5 $18) (36... Qe4+ $11 37. Qxe4 Rxe4) 37. Qa8+ $1 $18 {[%emt 0:00:08]} ({Worse is} 37. Rc8+ Kh7 38. Qg8+ (38. Qf7 $2 Qe4+ 39. Kg1 Qf3 $19) 38... Kg6 $11) 37... Kh7 {[%emt 0:00:01]} 38. Rxe5 {[%emt 0:00:02]} fxe5 39. b6 {[%emt 0:00:11]} Qxa2 40. Qe4+ $2 (40. b7 $18 Qd5+ 41. Kh2) 40... Kh8 {[%mdl 32768] Weighted Error Value: White=0.26 (precise) /Black=0.30. Sensor Board Error (Ke4/e5)?} 1-0

[Event "Susha Chess Blitz Women 2022"]
[Site "Shusha"]
[Date "2022.09.24"]
[Round "17"]
[White "Mammadova, Gulnar"]
[Black "Efroimski, Marsel"]
[Result "0-1"]
[ECO "B30"]
[WhiteElo "2382"]
[BlackElo "2462"]
[Annotator "TA"]
[PlyCount "109"]
[EventDate "2022.09.24"]
[EventType "tourn"]
[EventCountry "AZE"]
[SourceTitle "playchess.com"]
[Source "ChessBase"]
[SourceQuality "1"]
[TimeControl "180+2"]

{[%evp 9,109,10,64,51,60,4,35,0,21,0,19,9,43,43,55,31,56,63,77,77,99,91,77,69,118,124,205,185,183,187,355,358,520,301,497,150,267,241,370,369,323,172,143,145,164,-255,-250,-268,-270,-266,-222,-454,-451,-658,-654,-654,-637,-652,-643,-814,-771,-1213,-1189,-1110,-1063,-1924,-837,-1768,-1709,-1638,-1539,-1419,-1200,-1179,-1135,-1441,-733,-802,-800,-827,-823,-823,-751,-823,-823,-837,-822,-722,-675,-822,-792,-651,-600,-886,-880,-903,-871,-888,-878,-1078,-817,-735]} 1. e4 {[%emt 0:00:01]} c5 {[%emt 0:00:00]} 2. Nf3 Nc6 3. Bb5 {[%emt 0:00:03]} e6 {[%emt 0:00:01]} 4. O-O {[%emt 0:00:05]} Nge7 {[%emt 0:00:01]} 5. Re1 {[%emt 0:00:05]} b6 {[%emt 0:00:06]} (5... a6 $11 6. Bxc6 Nxc6) 6. c3 $14 {[%emt 0:00:12] B30: Sicilian: 2...Nc6 3 Bb5, lines without ...g6.} a6 {[%emt 0:00:05]} 7. Bf1 {[%emt 0:00:03]} (7. Ba4 $14) 7... Bb7 {[%emt 0:00:01]} 8. d3 {[%emt 0:00:15] White is slightly better.} d5 {[%emt 0:00:03] [#]} 9. e5 $146 {[%emt 0:00:03]} ({Predecessor:} 9. Bg5 h6 10. Bh4 g5 11. Bg3 Bg7 12. Nbd2 O-O 13. h4 g4 14. exd5 exd5 15. Ne5 {½-½ (105) Sousa,A (2389)-Anton Guijarro,D (2703) Chess.com INT 2020}) 9... Nf5 {[%emt 0:00:07]} 10. g3 {[%emt 0:00:13]} h5 {[%emt 0:00:04]} 11. h4 {[%emt 0:00:05]} Qc7 {[%emt 0:00:05]} 12. Bg2 {[%emt 0:00:07]} O-O-O {[%emt 0:00:08]} 13. a3 {[%emt 0:00:03]} d4 {[%emt 0:00:07]} 14. c4 {[%emt 0:00:01]} Kb8 {[%emt 0:00:19]} 15. Nbd2 {[%emt 0:00:08]} Be7 {[%emt 0:00:02][%cal Og7g5]} 16. Ne4 {[%emt 0:00:08] Prevents g5.} f6 {[%emt 0:00:19] [#]} (16... Nxe5 $2 17. Nxe5 Ne3 18. Bxe3 dxe3 19. f4 $18 (19. fxe3 $2 Qxe5 20. Kf2 g5 $19) (19. Nxf7 exf2+ 20. Nxf2 Qxg3 $16)) (16... Rhf8 $14) 17. Bd2 $1 $16 {[%emt 0:00:15]} fxe5 {[%emt 0:00:16]} ({Weaker is} 17... Nxe5 18. Nxe5 fxe5 19. b4 $14) (17... Rde8 $16) 18. Rb1 $18 {[%emt 0:00:07]} a5 {[%emt 0:00:04]} 19. Nfg5 {[%emt 0:00:11]} Bxg5 {[%emt 0:00:07]} (19... Rh6 20. Nf7 Rh7 21. Nxd8 Qxd8) 20. Nxg5 {[%emt 0:00:01]} ({Not} 20. Bxg5 Rc8 $11) 20... Qd7 {[%emt 0:00:27]} (20... Rde8 $142 21. b4 cxb4 22. axb4 axb4) 21. Be4 {[%emt 0:00:01]} g6 $2 {[%emt 0:00:02]} (21... Nd6 {was worth a try.} 22. b4 cxb4 23. axb4 axb4 24. Bxb4 Nxb4) 22. Nf3 $2 {[%emt 0:00:12]} (22. b4 $18 {and White stays clearly on top.}) 22... Rhf8 {[%emt 0:00:04] [#]} (22... Nd6 $16) 23. b4 $1 {[%emt 0:00:05] Threatens to win with bxc5.} axb4 {[%emt 0:00:06]} (23... Nd6 {might work better.}) 24. axb4 {[%emt 0:00:01]} Nd6 {[%emt 0:00:26]} 25. bxc5 {[%emt 0:00:13]} (25. b5 $142 Ne7 26. Nxe5) 25... Nxe4 {[%emt 0:00:01]} 26. Rxe4 {[%emt 0:00:03]} Qf7 {[%emt 0:00:01]} 27. Bg5 $4 {[%emt 0:00:23][%mdl 8192]} (27. Kg2 $18) 27... Qxf3 $19 {[%emt 0:00:07] Black continues to play with concentration.} 28. Qxf3 {[%emt 0:00:01]} Rxf3 {[%emt 0:00:01]} 29. Bxd8 {[%emt 0:00:01]} Nxd8 {[%emt 0:00:01]} 30. Rxb6 $2 {[%emt 0:00:06]} (30. Rxe5 {only move.} Rxd3 31. Kf1) 30... Rxd3 {Black is clearly winning.} 31. f4 {[%emt 0:00:06]} (31. Kf1 $142 Kc7 32. Rxe5) 31... Kc7 {[%emt 0:00:12]} 32. Rxe5 {[%emt 0:00:03]} Rxg3+ {[%emt 0:00:03]} 33. Kh2 {[%emt 0:00:00]} Rc3 {[%emt 0:00:03]} 34. Rg5 {[%emt 0:00:06]} Be4 {[%emt 0:00:03]} 35. Re5 {[%emt 0:00:15]} Bf5 {[%emt 0:00:02] ...d3 is the strong threat.} 36. Re1 {[%emt 0:00:02]} Rxc4 {[%emt 0:00:01] Hoping for ...Nb7.} 37. Rd6 {[%emt 0:00:03]} d3 {[%emt 0:00:03]} (37... Nb7 $142 38. Ra6 Nxc5 39. Ra7+ Kd6) 38. Ra1 {[%emt 0:00:04]} Rxc5 {[%emt 0:00:02]} 39. Rd4 {[%emt 0:00:02]} Nb7 {[%emt 0:00:02]} 40. Kg3 {[%emt 0:00:02]} Rc3 {[%emt 0:00:06]} 41. Kf2 {[%emt 0:00:02]} Rc2+ {[%emt 0:00:02]} 42. Ke3 {[%emt 0:00:02]} Rc6 {[%emt 0:00:04]} 43. Ra7 {[%emt 0:00:05]} Rb6 {[%emt 0:00:06]} 44. Rc4+ {[%emt 0:00:03]} Kd7 {[%emt 0:00:02]} 45. Rd4+ {[%emt 0:00:02]} Ke7 {[%emt 0:00:01]} 46. Rc4 {[%emt 0:00:00]} Kd6 {[%emt 0:00:15]} 47. Rd4+ {[%emt 0:00:03]} Kc5 {[%emt 0:00:03]} 48. Ra1 {[%emt 0:00:02]} Kc6 {[%emt 0:00:03]} 49. Rc1+ {[%emt 0:00:01]} Nc5 {[%emt 0:00:01] White must now prevent ...Rb2.} 50. Rd8 {[%emt 0:00:04]} Rb5 {[%emt 0:00:04][%cal Oe6e5]} 51. Rc8+ {[%emt 0:00:01]} Kd6 {[%emt 0:00:00]} 52. Rd8+ {[%emt 0:00:03]} Ke7 {[%emt 0:00:01]} 53. Rc8 {[%emt 0:00:01]} Nd7 {[%emt 0:00:06] Strongly threatening ...Rb2.} 54. R1c7 {[%emt 0:00:03]} Rd5 {[%emt 0:00:01]} 55. Rc1 {[%emt 0:00:03] Weighted Error Value: White=1.11/Black=0.75} 0-1

[Event "Susha Chess Blitz Women 2022"]
[Site "Shusha"]
[Date "2022.09.24"]
[Round "18"]
[White "Arabidze, Meri"]
[Black "Mammadzada, Gunay"]
[Result "1-0"]
[ECO "A50"]
[WhiteElo "2422"]
[BlackElo "2473"]
[Annotator "TA"]
[PlyCount "95"]
[EventDate "2022.09.24"]
[EventType "tourn"]
[EventCountry "AZE"]
[SourceTitle "playchess.com"]
[Source "ChessBase"]
[SourceQuality "1"]
[TimeControl "180+2"]

{[%evp 10,95,12,0,0,0,0,-36,0,-4,1,-24,-20,-25,-19,-28,20,0,38,-47,63,60,79,90,175,169,178,173,172,16,11,16,64,67,51,61,66,14,17,0,0,0,27,29,62,27,27,27,27,23,35,35,35,35,45,43,43,48,79,72,254,0,0,0,0,0,0,0,0,0,0,0,0,0,0,0,0,0,0,0,0,0,0,0,29966,29964,4794,3937]} 1. d4 {[%emt 0:00:01]} Nf6 {[%emt 0:00:02]} 2. c4 {[%emt 0:00:00]} c6 {[%emt 0:00:05]} 3. Nf3 {[%emt 0:00:08]} d5 {[%emt 0:00:01]} 4. g3 {[%emt 0:00:01]} g6 {[%emt 0:00:04]} 5. Bg2 {[%emt 0:00:04]} Bg7 {[%emt 0:00:02]} 6. O-O {[%emt 0:00:03]} dxc4 {[%emt 0:00:16] D73: Fianchetto Grünfeld: 5 Nf3 .} 7. a4 {[%emt 0:00:03]} Ne4 {[%emt 0:00:29]} 8. a5 {[%emt 0:00:22]} Bf5 {[%emt 0:00:30] Black is slightly better.} 9. Nc3 {[%emt 0:00:16]} O-O {[%emt 0:00:30]} 10. Qa4 {[%emt 0:00:05]} Nd6 {[%emt 0:00:07] [#]} ({Don't take} 10... Bxd4 11. Nxd4 Qxd4 12. Bxe4 Bxe4 13. Rd1 $16) 11. Ne5 $146 {[%emt 0:00:12]} ({Predecessor:} 11. Rd1 Nd7 12. Bf4 b5 13. axb6 axb6 14. Qxc6 Rxa1 15. Rxa1 Qc8 16. Qxc8 Rxc8 17. Ra7 {0-1 (49) Baroyan,D (2049)-Lagunes,R (1857) Espalion 2018}) 11... Be6 {[%emt 0:00:03]} 12. Rd1 {[%emt 0:00:09]} Nd7 {[%emt 0:00:02]} (12... Qe8 {feels stronger.}) 13. Bf4 {[%emt 0:00:11]} (13. a6 $5 {[%cal Ra6b7]} b5 14. Qb4 Nxe5 15. dxe5 Bxe5 16. Bxc6 $11) 13... a6 {[%emt 0:00:04]} 14. e4 {[%emt 0:00:23]} (14. Qb4 $14) 14... Qc8 {[%emt 0:00:32]} (14... c5 $1 $15 15. Nd5 cxd4 16. Nxc4 Bxd5 17. exd5 b5 18. axb6 Nxb6 19. Nxb6 Qxb6) 15. Nxd7 $1 $14 {[%emt 0:00:09] White has more active pieces. The black rooks are badly placed.} Qxd7 {[%emt 0:00:07]} 16. d5 $1 {[%emt 0:00:07]} cxd5 {[%emt 0:00:05]} (16... Bh3 $16) 17. Qxd7 $1 $18 {[%emt 0:00:03][%mdl 64] Deflection} Bxd7 {[%emt 0:00:01]} 18. Nxd5 {[%emt 0:00:01]} Rfe8 {[%emt 0:00:20]} 19. Nxe7+ $2 {[%emt 0:00:27]} Rxe7 $11 {[%emt 0:00:01]} 20. Bxd6 {[%emt 0:00:01]} Ree8 {[%emt 0:00:02]} (20... Re6 $1 $11) 21. e5 $1 $14 {[%emt 0:00:03]} Bc6 $1 {[%emt 0:00:08]} 22. Bxc6 {[%emt 0:00:03]} bxc6 {[%emt 0:00:01]} 23. f4 {[%emt 0:00:01]} (23. Re1 $14) 23... f6 $11 {[%emt 0:00:04][%cal Rf6e5]} 24. Re1 {[%emt 0:00:05]} fxe5 {[%emt 0:00:01]} 25. fxe5 {[%emt 0:00:07]} Re6 {[%emt 0:00:00]} 26. Re4 {[%emt 0:00:18]} Rae8 {[%emt 0:00:01] Strongly threatening ...Rxd6.} 27. Rxc4 {[%emt 0:00:13]} (27. Rae1 {looks sharper.} g5 28. R1e2 h5 29. Kf2) 27... Bxe5 {[%emt 0:00:11]} 28. Bxe5 {[%emt 0:00:01]} Rxe5 {[%emt 0:00:01]} 29. Rxc6 $14 {[%emt 0:00:01][%mdl 4096] Endgame KRR-KRR} Rb8 {[%emt 0:00:05]} 30. Rb6 {[%emt 0:00:08]} Rxb6 {[%emt 0:00:03]} 31. axb6 {[%emt 0:00:01] KR-KR} Rb5 {[%emt 0:00:00][%csl LRb2,LRb6]} 32. Rxa6 {[%emt 0:00:01]} Rxb2 {[%emt 0:00:01]} 33. Ra8+ {[%emt 0:00:03]} Kg7 {[%emt 0:00:01] [#]} 34. Rb8 $1 {[%emt 0:00:01]} h5 $2 {[%emt 0:00:05]} (34... Rb1+ $16 35. Kf2 Rb2+ 36. Kg1 Rb1+ 37. Kf2 Rb2+ 38. Ke3 Rxh2) 35. h4 $2 {[%emt 0:00:06]} ({White should try} 35. h3 $18) 35... Kf7 {[%emt 0:00:02]} 36. Kf1 {[%emt 0:00:01]} Kf6 {[%emt 0:00:02]} 37. Ke1 {[%emt 0:00:02]} Kf5 {[%emt 0:00:02]} 38. b7 {[%emt 0:00:08] Threatening mate with Rf8+.} Kg4 {[%emt 0:00:01]} 39. Rg8 {[%emt 0:00:01]} Rxb7 {[%emt 0:00:01] Hoping for ...Rb6.} 40. Rxg6+ {[%emt 0:00:01]} Kh3 {[%emt 0:00:04]} 41. Ke2 {[%emt 0:00:05]} Rb3 {[%emt 0:00:02]} 42. Kf2 {[%emt 0:00:03]} Ra3 {[%emt 0:00:03]} 43. Rg5 {[%emt 0:00:02]} Ra2+ {[%emt 0:00:03]} 44. Kf3 Ra3+ 45. Kf4 {[%emt 0:00:02]} Ra4+ {[%emt 0:00:01]} 46. Kf5 {[%emt 0:00:03] Kg6 is the strong threat.} Ra3 $2 {[%emt 0:00:01][%mdl 8192] [#]} (46... Ra6 $11) 47. Kg6 $1 {[%emt 0:00:03]} Rb3 {[%emt 0:00:06]} 48. Kxh5 {[%emt 0:00:02] Weighted Error Value: White=0.22 (precise) /Black=0.41} 1-0

[Event "Susha Chess Blitz Women 2022"]
[Site "Shusha"]
[Date "2022.09.24"]
[Round "18"]
[White "Fataliyeva, Ulviyya"]
[Black "Ozturk Orenli, Kubra"]
[Result "1-0"]
[ECO "A06"]
[WhiteElo "2408"]
[BlackElo "2319"]
[Annotator "TA"]
[PlyCount "82"]
[EventDate "2022.09.24"]
[EventType "tourn"]
[EventCountry "AZE"]
[SourceTitle "playchess.com"]
[Source "ChessBase"]
[SourceQuality "1"]
[TimeControl "180+2"]

{[%evp 16,82,0,0,0,-13,-4,-10,-15,-18,1,0,4,5,4,12,20,24,18,14,22,13,41,31,49,47,52,52,134,25,47,47,45,-20,-9,-20,-14,-16,-11,-24,0,0,10,0,0,0,11,8,16,19,24,0,17,22,151,94,590,135,133,143,289,129,230,242,244,244,808,770,920]} 1. Nf3 {[%emt 0:00:01]} d5 {[%emt 0:00:01]} 2. g3 {[%emt 0:00:01]} Nf6 {[%emt 0:00:03]} 3. Bg2 {[%emt 0:00:01]} g6 {[%emt 0:00:02]} 4. O-O Bg7 5. d3 {[%emt 0:00:14]} O-O {[%emt 0:00:02]} 6. Nbd2 {[%emt 0:00:02]} c5 {[%emt 0:00:05]} 7. e4 {[%emt 0:00:03]} Nc6 {[%emt 0:00:05]} 8. Re1 {[%emt 0:00:11]} dxe4 {[%emt 0:00:21]} 9. dxe4 {[%emt 0:00:01]} Nd7 {[%emt 0:00:44] A08: King's Indian Attack.} 10. c3 {[%emt 0:00:04]} Nde5 {[%emt 0:00:07]} 11. Nxe5 {[%emt 0:00:35]} Nxe5 {[%emt 0:00:02] [#] The position is equal.} 12. Qe2 $146 {[%emt 0:00:04] Against c4} ({Predecessor:} 12. Bf1 b6 13. Qe2 a5 14. f4 Ba6 15. c4 Nc6 16. Nf3 Qc7 17. Be3 Rad8 18. Rab1 {½-½ (37) Dyagelev,A-Grigorev,M Dimitrovgrad 2009}) 12... Qd3 {[%emt 0:00:23]} 13. Bf1 {[%emt 0:00:10]} Qxe2 {[%emt 0:00:27]} 14. Bxe2 {[%emt 0:00:03]} Rd8 {[%emt 0:00:10]} 15. Nc4 {[%emt 0:00:57]} Be6 {[%emt 0:00:19]} 16. Nxe5 {[%emt 0:00:08]} Bxe5 {[%emt 0:00:01]} 17. Be3 {[%emt 0:00:02]} b6 {[%emt 0:00:04]} 18. f4 {[%emt 0:00:02][%cal Bf2f4,Bf4f5][%mdl 32]} Bg7 {[%emt 0:00:01]} 19. a4 {[%emt 0:00:12][%cal Ba2a4,Ba4a5][%mdl 32]} Bb3 {[%emt 0:00:13]} 20. a5 {[%emt 0:00:05]} e5 {[%emt 0:00:05]} 21. f5 {[%emt 0:00:09]} Bc2 {[%emt 0:00:08]} (21... Bf6 $14) 22. Bf3 {[%emt 0:00:15]} (22. fxg6 $1 $16 hxg6 23. Bc4) 22... Rab8 {[%emt 0:00:07]} 23. axb6 {[%emt 0:00:04]} axb6 {[%emt 0:00:01]} 24. Ra7 {[%emt 0:00:07]} (24. g4 $14) 24... gxf5 $11 {[%emt 0:00:08]} 25. Bh5 {[%emt 0:00:10]} Bxe4 {[%emt 0:00:05] With the idea ...Rb7.} 26. Bxf7+ {[%emt 0:00:04]} Kh8 {[%emt 0:00:01]} 27. Bg5 {[%emt 0:00:04]} Rf8 {[%emt 0:00:03]} 28. Rd1 {[%emt 0:00:03]} Ra8 {[%emt 0:00:01]} 29. Rdd7 {[%emt 0:00:01]} Rxa7 {[%emt 0:00:01]} 30. Rxa7 {[%emt 0:00:01]} Ra8 {[%emt 0:00:01]} 31. Rd7 {[%emt 0:00:03][%mdl 1024] White has compensation.} h6 {[%emt 0:00:02]} 32. Be7 {[%emt 0:00:02]} f4 {[%emt 0:00:02][%cal Bf5f4,Bf4f3][%mdl 32]} 33. Bd6 {[%emt 0:00:02]} f3 {[%emt 0:00:05]} 34. Kf2 {[%emt 0:00:03]} Kh7 {[%emt 0:00:05]} (34... Bf6 $11 {keeps the balance.}) 35. Be6 {[%emt 0:00:02]} (35. Bc4 $142 $1 {Hoping for Bxe5.} Kg6 36. Ke3) 35... Re8 $2 {[%emt 0:00:02][%mdl 8192]} (35... Kg6 $16) 36. Bg4 $2 {[%emt 0:00:01]} (36. Bxe5 $1 $18 h5 37. Rxg7+ Kh6 38. g4 $1 hxg4 39. Rxg4 Rxe6 40. Rxe4) 36... Bc6 {[%emt 0:00:03]} 37. Rc7 {[%emt 0:00:02]} Bd5 {[%emt 0:00:01] [#] This move loses the game for Black.} (37... Ba8 $16 {was necessary.}) 38. Bxf3 {[%emt 0:00:02]} (38. Bh5 $1 $18 {[%cal Rh5e8] is the precise move to win.} Rg8 39. Bxe5 (39. Bxf3 e4 $16)) 38... e4 {[%emt 0:00:02]} (38... Bxf3 $16 {was called for.} 39. Kxf3 Re6) 39. Bh5 $18 {[%emt 0:00:02]} e3+ {[%emt 0:00:01] [#]} 40. Ke1 $1 {[%emt 0:00:02]} Re6 {[%emt 0:00:01]} (40... Rg8 41. Ke2 Kh8) 41. Bf8 {[%emt 0:00:02]} Bb3 {Weighted Error Value: White=0.34/Black=0.47} 1-0

[Event "Susha Chess Blitz Women 2022"]
[Site "Shusha"]
[Date "2022.09.24"]
[Round "18"]
[White "Balajayeva, Khanim"]
[Black "Dzagnidze, Nana"]
[Result "0-1"]
[ECO "B90"]
[WhiteElo "2379"]
[BlackElo "2526"]
[Annotator "TA"]
[PlyCount "84"]
[EventDate "2022.09.24"]
[EventType "tourn"]
[EventCountry "AZE"]
[SourceTitle "playchess.com"]
[Source "ChessBase"]
[SourceQuality "1"]
[TimeControl "180+2"]

{[%evp 12,84,14,7,31,20,30,0,12,0,10,0,0,6,4,0,11,13,10,0,25,0,22,-8,0,0,0,-46,0,0,2,0,25,-391,-391,-508,-501,-564,-508,-497,-482,-701,-702,-686,-697,-706,-670,-757,-756,-750,-688,-691,-666,-761,-768,-856,-848,-874,-839,-858,-847,-972,-963,-900,-841,-989,-965,-29968,-29957,-29976,-29977,-29974,-29976,-6187,-5319]} 1. e4 {[%emt 0:00:00]} c5 {[%emt 0:00:02]} 2. Nf3 {[%emt 0:00:01]} d6 {[%emt 0:00:01]} 3. d4 {[%emt 0:00:01]} cxd4 {[%emt 0:00:01]} 4. Nxd4 {[%emt 0:00:01]} Nf6 {[%emt 0:00:01]} 5. Nc3 a6 6. h3 {[%emt 0:00:01]} e5 {[%emt 0:00:03]} 7. Nde2 {[%emt 0:00:04]} h5 {[%emt 0:00:02] B90: Sicilian Najdorf: Unusual White 6th moves, 6 Be3 Ng4 and 6 Be3 e5.} 8. Bg5 {[%emt 0:00:03]} Be6 {[%emt 0:00:09]} 9. Bxf6 {[%emt 0:00:06]} Qxf6 {[%emt 0:00:01] The position is equal.} 10. Nd5 {[%emt 0:00:01]} Qd8 {[%emt 0:00:01]} 11. Nec3 {[%emt 0:00:02]} g6 {[%emt 0:00:13]} 12. Bc4 {[%emt 0:00:01]} Bh6 {[%emt 0:00:02]} 13. O-O {[%emt 0:00:04]} O-O {[%emt 0:00:04]} 14. Bb3 {[%emt 0:00:03]} Nd7 {[%emt 0:00:05]} 15. Qe2 {[%emt 0:00:05] [#]} Nc5 $146 {[%emt 0:00:11]} ({Predecessor:} 15... Rc8 16. Rad1 Kg7 17. Ne3 Nc5 18. Bxe6 Nxe6 19. Ned5 Qa5 20. Qf3 Bg5 21. g3 Bd8 {1-0 (44) Efendiyev,E (2565)-Tomizawa,T (2484) ICCF email 2016}) 16. Rad1 {[%emt 0:00:02]} Kg7 {[%emt 0:00:07]} 17. f4 {[%emt 0:00:11]} Nxb3 {[%emt 0:00:29]} 18. axb3 {[%emt 0:00:01]} exf4 {[%emt 0:00:02]} 19. e5 {[%emt 0:00:10]} (19. Qf2 $11) 19... Re8 {[%emt 0:00:14]} (19... Bxd5 $15 20. Rxd5 Qb6+ 21. Kh1 Rae8) 20. Nf6 $11 {[%emt 0:00:34] Pair of Knights!} Qb6+ {[%emt 0:00:05]} 21. Kh1 {[%emt 0:00:03]} Red8 {[%emt 0:00:06] ...Qe3 is the strong threat. Dancing on a razor blade.} 22. exd6 $2 {[%emt 0:00:09][%mdl 8192] [#] This costs White the game.} Kxf6 $19 {[%emt 0:00:15]} 23. Ne4+ {[%emt 0:00:11]} Kg7 {[%emt 0:00:02]} 24. c4 {[%emt 0:00:00]} Qe3 {[%emt 0:00:04]} 25. Qc2 {[%emt 0:00:12]} Bf5 {[%emt 0:00:02]} 26. Qc3+ {[%emt 0:00:08]} (26. Rfe1 $142 Bxe4 27. Qxe4 Qxb3 28. Qe5+ Kg8 29. Qd5) 26... Qxc3 {[%emt 0:00:16]} 27. Nxc3 {[%emt 0:00:02]} Rac8 {[%emt 0:00:23]} 28. Rd5 {[%emt 0:00:04]} Be6 {[%emt 0:00:04]} 29. Rd3 {[%emt 0:00:08]} Rc6 {[%emt 0:00:01]} 30. Rfd1 {[%emt 0:00:02]} f3 {[%emt 0:00:04]} 31. gxf3 {[%emt 0:00:05]} Bf4 {[%emt 0:00:05]} 32. d7 {[%emt 0:00:07]} Bxh3 {[%emt 0:00:12]} 33. Na4 {[%emt 0:00:06]} Bf5 {[%emt 0:00:08]} 34. Rd5 {[%emt 0:00:04]} Be6 {[%emt 0:00:01]} 35. R5d3 {[%emt 0:00:02]} b5 {[%emt 0:00:02]} 36. cxb5 {[%emt 0:00:04]} axb5 {[%emt 0:00:01]} 37. Nc3 {[%emt 0:00:01]} Rc7 {[%emt 0:00:12]} 38. Nxb5 {[%emt 0:00:06]} Rcxd7 {[%emt 0:00:01]} 39. Nd4 {[%emt 0:00:01]} Kg8 {[%emt 0:00:07]} 40. Nxe6 {[%emt 0:00:14]} Rxd3 {[%emt 0:00:02]} 41. Rxd3 {[%emt 0:00:00]} Rxd3 {[%emt 0:00:01]} 42. Nxf4 {[%emt 0:00:01]} Rxb3 {[%emt 0:00:01] Weighted Error Value: White=0.56/Black=0.12 (very precise)} 0-1